fUSD/lending_fUSD_20240624
["ID","MTS","AMOUNT","RATE_DAILY","PERIOD"]
[330268907,1719219048033,-500.0,0.00019178,2]
[330268908,1719219048042,-500.0,0.00019178,2]
[330268909,1719219048051,-500.0,0.00019178,2]
[330268910,1719219048060,-500.0,0.00019178,2]
[330268911,1719219048069,-964.25,0.00019178,2]
[330268912,1719219048078,-500.0,0.00019178,2]
[330268913,1719219048087,-503.8,0.00019178,2]
[330268914,1719219048097,-634.47,0.00019178,2]
[330268915,1719219048107,-500.0,0.00019178,2]
[330268916,1719219048116,-1.36570862,0.00019178,2]
[330268917,1719219048130,-639.60429138,0.00019178,2]
[330268918,1719219048140,-500.0,0.00019178,2]
[330268919,1719219048149,-500.0,0.00019178,2]
[330268920,1719219048158,-605.59,0.00019178,2]
[330268921,1719219048168,-500.0,0.00019178,2]
[330268922,1719219048177,-500.0,0.00019178,2]
[330268923,1719219048187,-500.0,0.00019178,2]
[330268924,1719219048196,-500.0,0.00019178,2]
[330268925,1719219048205,-469.43091832,0.00019178,2]
[330268926,1719219048217,-30.56908168,0.00019178,2]
[330268927,1719219048227,-500.0,0.00019178,2]
[330268928,1719219048237,-500.0,0.00019178,2]
[330268929,1719219048246,-500.0,0.00019178,2]
[330268930,1719219048260,-500.0,0.00019178,2]
[330268931,1719219048272,-500.0,0.00019178,2]
[330268932,1719219048281,-500.0,0.00019178,2]
[330268933,1719219048291,-888.06,0.00019178,2]
[330268934,1719219048301,-500.0,0.00019178,2]
[330268935,1719219048310,-500.0,0.00019178,2]
[330268936,1719219048319,-352.68696835,0.00019178,2]
[330268937,1719219048332,-147.31303165,0.00019178,2]
[330268938,1719219048343,-505.18370799,0.00019178,2]
[330268939,1719219048355,-508.24629201,0.00019178,2]
[330268940,1719219048364,-500.0,0.00019178,2]
[330268941,1719219048373,-500.0,0.00019178,2]
[330268942,1719219048382,-500.0,0.00019178,2]
[330268943,1719219048392,-500.0,0.00019178,2]
[330268944,1719219048401,-500.0,0.00019178,2]
[330268945,1719219048410,-500.0,0.00019178,2]
[330268946,1719219048419,-500.0,0.00019178,2]
[330268947,1719219048430,-500.0,0.00019178,2]
[330268948,1719219048439,-500.0,0.00019178,2]
[330268949,1719219048448,-500.0,0.00019178,2]
[330268950,1719219048457,-500.0,0.00019178,2]
[330268951,1719219048467,-620.92,0.00019178,2]
[330268952,1719219048476,-500.0,0.00019178,2]
[330268953,1719219048486,-500.0,0.00019178,2]
[330268954,1719219048495,-500.0,0.00019178,2]
[330268955,1719219048504,-500.0,0.00019178,2]
[330268956,1719219048514,-1802.17,0.00019178,2]
[330268957,1719219048524,-500.0,0.00019178,2]
[330268958,1719219048533,-753.92,0.00019178,2]
[330268959,1719219048542,-500.0,0.00019178,2]
[330268960,1719219048552,-500.0,0.00019178,2]
[330268961,1719219048562,-500.0,0.00019178,2]
[330268962,1719219048571,-500.0,0.00019178,2]
[330268963,1719219048580,-500.0,0.00019178,2]
[330268964,1719219048589,-500.0,0.00019178,2]
[330268965,1719219048598,-500.0,0.00019178,2]
[330268966,1719219048608,-500.0,0.00019178,2]
[330268967,1719219048617,-513.86686945,0.00019178,2]
[330268968,1719219048627,-513.13603888,0.00019178,2]
[330268969,1719219048636,-500.0,0.00019178,2]
[330268971,1719219048645,-1000.0,0.00019178,2]
[330268973,1719219048655,-500.0,0.00019178,2]
[330268975,1719219048664,-500.0,0.00019178,2]
[330268977,1719219048673,-500.0,0.00019178,2]
[330268979,1719219048683,-196.22251729,0.00019178,2]
[330268982,1719219048696,-303.77748271,0.00019178,2]
[330268983,1719219048705,-315.98272042,0.00019178,2]
[330268984,1719219048971,-184.01727958,0.00019178,2]
[330268985,1719219048980,-500.0,0.00019178,2]
[330268986,1719219048989,-500.0,0.00019178,2]
[330268987,1719219048998,-500.0,0.00019178,2]
[330268988,1719219049007,-500.0,0.00019178,2]
[330268989,1719219049018,-738.24,0.00019178,2]
[330268990,1719219049027,-704.86,0.00019178,2]
[330268991,1719219049037,-500.0,0.00019178,2]
[330268992,1719219049046,-500.0,0.00019178,2]
[330268993,1719219049056,-500.0,0.00019178,2]
[330268994,1719219049065,-500.0,0.00019178,2]
[330268995,1719219049075,-500.0,0.00019178,2]
[330268996,1719219049084,-500.0,0.00019178,2]
[330268997,1719219049094,-635.45144882,0.00019178,2]
[330268998,1719219049103,-0.75095266,0.00019178,2]
[330269019,1719219099290,-234.1,0.00017081,2]
[330269020,1719219099321,-234.1,0.00017618,2]
[330269021,1719219099347,-234.1,0.00018156,2]
[330269022,1719219099378,-234.1,0.00018693,2]
[330269023,1719219099405,-10000.0,0.00019078,2]
[330269024,1719219099430,-151.86,0.00019168,2]
[330269025,1719219099456,-152.07,0.00019173,2]
[330269026,1719219099482,-1000.0,0.00019176,2]
[330269027,1719219099509,-300.0,0.00019177,2]
[330269028,1719219099534,-150.0,0.00019177,2]
[330269029,1719219099563,-499.24904734,0.00019178,2]
[330269030,1719219099588,-500.0,0.00019178,2]
[330269031,1719219099615,-500.0,0.00019178,2]
[330269032,1719219099642,-500.0,0.00019178,2]
[330269033,1719219099667,-500.0,0.00019178,2]
[330269034,1719219099692,-500.0,0.00019178,2]
[330269035,1719219099724,-1449.44,0.00019178,2]
[330269036,1719219099750,-500.0,0.00019178,2]
[330269037,1719219099775,-500.0,0.00019178,2]
[330269038,1719219099804,-500.0,0.00019178,2]
[330269039,1719219099834,-500.0,0.00019178,2]
[330269040,1719219099860,-514.55201884,0.00019178,2]
[330269041,1719219099887,-500.0,0.00019178,2]
[330269042,1719219099915,-647.47509981,0.00019178,2]
[330269043,1719219099941,-500.0,0.00019178,2]
[330269044,1719219099967,-500.0,0.00019178,2]
[330269045,1719219099993,-297.90690765,0.00019178,2]
[330269046,1719219100018,-500.0,0.00019178,2]
[330269047,1719219100043,-500.0,0.00019178,2]
[330269048,1719219100070,-740.35,0.00019178,2]
[330269049,1719219100096,-551.77,0.00019178,2]
[330269050,1719219100123,-500.0,0.00019178,2]
[330269051,1719219100150,-500.0,0.00019178,2]
[330269052,1719219100176,-721.7,0.00019178,2]
[330269053,1719219100201,-500.0,0.00019178,2]
[330269054,1719219100227,-500.0,0.00019178,2]
[330269055,1719219100253,-563.64,0.00019178,2]
[330269056,1719219100286,-500.0,0.00019178,2]
[330269057,1719219100316,-500.0,0.00019178,2]
[330269058,1719219100343,-500.0,0.00019178,2]
[330269059,1719219100369,-520.78118488,0.00019178,2]
[330269060,1719219100395,-500.0,0.00019178,2]
[330269061,1719219100421,-632.62,0.00019178,2]
[330269062,1719219100447,-500.0,0.00019178,2]
[330269063,1719219100473,-500.0,0.00019178,2]
[330269064,1719219100499,-500.0,0.00019178,2]
[330269065,1719219100524,-500.0,0.00019178,2]
[330269066,1719219100550,-500.0,0.00019178,2]
[330269067,1719219100575,-500.0,0.00019178,2]
[330269068,1719219100600,-500.0,0.00019178,2]
[330269069,1719219100626,-500.0,0.00019178,2]
[330269070,1719219100652,-1501.35,0.00019178,2]
[330269071,1719219100677,-500.0,0.00019178,2]
[330269072,1719219100702,-500.0,0.00019178,2]
[330269073,1719219100729,-500.0,0.00019178,2]
[330269074,1719219100755,-1202.18,0.00019178,2]
[330269075,1719219100780,-500.0,0.00019178,2]
[330269076,1719219100806,-509.57208016,0.00019178,2]
[330269077,1719219100832,-500.0,0.00019178,2]
[330269078,1719219100857,-500.0,0.00019178,2]
[330269079,1719219100882,-574.92,0.00019178,2]
[330269080,1719219100907,-500.0,0.00019178,2]
[330269081,1719219100932,-320.581286,0.00019178,2]
[330269082,1719219100958,-500.0,0.00019178,2]
[330269083,1719219100984,-500.0,0.00019178,2]
[330269084,1719219101009,-201.48530875,0.00019178,2]
[330269085,1719219101035,-692.24,0.00019178,2]
[330269086,1719219101061,-500.0,0.00019178,2]
[330269087,1719219101085,-197.64337646,0.00019178,2]
[330269088,1719219101110,-2044.66,0.00019178,2]
[330269089,1719219101135,-751.68,0.00019178,2]
[330269090,1719219101160,-500.0,0.00019178,2]
[330269091,1719219101184,-181.39301456,0.00019178,2]
[330269092,1719219101207,-500.0,0.00019178,2]
[330269093,1719219101233,-500.0,0.00019178,2]
[330269094,1719219101259,-500.0,0.00019178,2]
[330269095,1719219101290,-646.27,0.00019178,2]
[330269096,1719219101317,-500.0,0.00019178,2]
[330269097,1719219101342,-500.0,0.00019178,2]
[330269098,1719219101368,-500.0,0.00019178,2]
[330269099,1719219101393,-500.0,0.00019178,2]
[330269100,1719219101417,-500.0,0.00019178,2]
[330269101,1719219101444,-866.29,0.00019178,2]
[330269102,1719219101469,-666.23,0.00019178,2]
[330269103,1719219101723,-500.0,0.00019178,2]
[330269104,1719219101749,-246.19774123,0.00019178,2]
[330269105,1719219101775,-500.0,0.00019178,2]
[330269106,1719219101803,-557.44,0.00019178,2]
[330269107,1719219101829,-500.0,0.00019178,2]
[330269108,1719219101855,-1449.34,0.00019178,2]
[330269109,1719219101879,-500.83288042,0.00019178,2]
[330269110,1719219101904,-500.0,0.00019178,2]
[330269111,1719219101929,-500.0,0.00019178,2]
[330269112,1719219101954,-500.0,0.00019178,2]
[330269113,1719219101979,-500.0,0.00019178,2]
[330269114,1719219102009,-639.0,0.00019178,2]
[330269115,1719219102034,-500.0,0.00019178,2]
[330269116,1719219102062,-635.57,0.00019178,2]
[330269117,1719219102086,-500.0,0.00019178,2]
[330269118,1719219102110,-500.0,0.00019178,2]
[330269119,1719219102135,-500.54961433,0.00019178,2]
[330269120,1719219102159,-500.0,0.00019178,2]
[330269121,1719219102183,-1209.07,0.00019178,2]
[330269122,1719219102207,-500.0,0.00019178,2]
[330269123,1719219102230,-552.07,0.00019178,2]
[330269124,1719219102254,-500.0,0.00019178,2]
[330269125,1719219102282,-500.0,0.00019178,2]
[330269126,1719219102308,-583.57,0.00019178,2]
[330269127,1719219102333,-500.0,0.00019178,2]
[330269128,1719219102358,-500.0,0.00019178,2]
[330269129,1719219102382,-500.0,0.00019178,2]
[330269130,1719219102406,-500.0,0.00019178,2]
[330269131,1719219102430,-500.0,0.00019178,2]
[330269132,1719219102455,-500.0,0.00019178,2]
[330269133,1719219102479,-500.0,0.00019178,2]
[330269134,1719219102503,-500.0,0.00019178,2]
[330269135,1719219102527,-500.0,0.00019178,2]
[330269136,1719219102552,-500.0,0.00019178,2]
[330269137,1719219102576,-650.21,0.00019178,2]
[330269138,1719219102600,-500.0,0.00019178,2]
[330269139,1719219102625,-500.0,0.00019178,2]
[330269140,1719219102649,-500.0,0.00019178,2]
[330269141,1719219102674,-612.46,0.00019178,2]
[330269142,1719219102697,-500.0,0.00019178,2]
[330269143,1719219102721,-500.0,0.00019178,2]
[330269144,1719219102747,-746.5,0.00019178,2]
[330269145,1719219102770,-1602.79,0.00019178,2]
[330269146,1719219102794,-1731.28,0.00019178,2]
[330269147,1719219102821,-500.0,0.00019178,2]
[330269148,1719219102849,-500.0,0.00019178,2]
[330269149,1719219102873,-500.0,0.00019178,2]
[330269150,1719219102898,-500.0,0.00019178,2]
[330269151,1719219102922,-500.0,0.00019178,2]
[330269152,1719219102951,-500.0,0.00019178,2]
[330269153,1719219102974,-500.0,0.00019178,2]
[330269154,1719219102998,-500.0,0.00019178,2]
[330269155,1719219103022,-500.0,0.00019178,2]
[330269156,1719219103047,-500.0,0.00019178,2]
[330269157,1719219103074,-501.95367559,0.00019178,2]
[330269158,1719219103099,-1285.84,0.00019178,2]
[330269159,1719219103124,-500.0,0.00019178,2]
[330269160,1719219103148,-518.60882894,0.00019178,2]
[330269161,1719219103172,-500.0,0.00019178,2]
[330269162,1719219103195,-500.0,0.00019178,2]
[330269163,1719219103220,-500.0,0.00019178,2]
[330269164,1719219103244,-500.0,0.00019178,2]
[330269165,1719219103271,-501.38,0.00019178,2]
[330269166,1719219103295,-500.0,0.00019178,2]
[330269167,1719219103330,-500.0,0.00019178,2]
[330269168,1719219103358,-500.0,0.00019178,2]
[330269169,1719219103383,-500.0,0.00019178,2]
[330269170,1719219103407,-500.0,0.00019178,2]
[330269171,1719219103432,-500.0,0.00019178,2]
[330269172,1719219103457,-500.0,0.00019178,2]
[330269173,1719219103484,-316.04646589,0.00019178,2]
[330269174,1719219103509,-500.0,0.00019178,2]
[330269175,1719219103533,-501.50261637,0.00019178,2]
[330269176,1719219103560,-500.0,0.00019178,2]
[330269177,1719219103584,-500.0,0.00019178,2]
[330269178,1719219103607,-532.33684758,0.00019178,2]
[330269179,1719219103632,-500.0,0.00019178,2]
[330269180,1719219103656,-2500.0,0.00019178,3]
[330269181,1719219103680,-753.11,0.00019178,2]
[330269182,1719219103705,-1212.55,0.00019178,2]
[330269183,1719219103730,-500.0,0.00019178,2]
[330269184,1719219103756,-500.0,0.00019178,2]
[330269185,1719219103780,-500.0,0.00019178,2]
[330269186,1719219103804,-500.0,0.00019178,2]
[330269187,1719219103828,-1138.46,0.00019178,2]
[330269188,1719219103851,-500.0,0.00019178,2]
[330269189,1719219103875,-500.0,0.00019178,2]
[330269190,1719219103900,-500.0,0.00019178,2]
[330269191,1719219103924,-500.0,0.00019178,2]
[330269192,1719219103948,-500.0,0.00019178,2]
[330269193,1719219103975,-500.0,0.00019178,2]
[330269194,1719219104000,-500.0,0.00019178,2]
[330269195,1719219104024,-500.0,0.00019178,2]
[330269196,1719219104048,-500.0,0.00019178,2]
[330269197,1719219104074,-723.22,0.00019178,2]
[330269198,1719219104098,-985.76,0.00019178,2]
[330269199,1719219104121,-500.0,0.00019178,2]
[330269200,1719219104146,-500.0,0.00019178,2]
[330269201,1719219104170,-500.0,0.00019178,2]
[330269202,1719219104196,-500.0,0.00019178,2]
[330269203,1719219104221,-250.0,0.00019178,2]
[330269204,1719219104245,-506.77053557,0.00019178,2]
[330269205,1719219104274,-1071.39,0.00019178,2]
[330269206,1719219104300,-500.0,0.00019178,2]
[330269207,1719219104327,-500.0,0.00019178,2]
[330269208,1719219104357,-500.0,0.00019178,2]
[330269209,1719219104559,-500.0,0.00019178,2]
[330269210,1719219104584,-500.0,0.00019178,2]
[330269211,1719219104609,-500.0,0.00019178,2]
[330269212,1719219104633,-500.0,0.00019178,2]
[330269213,1719219104658,-500.0,0.00019178,2]
[330269214,1719219104682,-500.0,0.00019178,2]
[330269215,1719219104706,-500.0,0.00019178,2]
[330269216,1719219104730,-500.0,0.00019178,2]
[330269217,1719219104755,-500.0,0.00019178,2]
[330269218,1719219104779,-500.0,0.00019178,2]
[330269219,1719219104803,-635.89,0.00019178,2]
[330269220,1719219104828,-500.0,0.00019178,2]
[330269221,1719219104853,-707.98,0.00019178,2]
[330269222,1719219104878,-689.43,0.00019178,2]
[330269223,1719219104903,-500.0,0.00019178,2]
[330269224,1719219104929,-500.0,0.00019178,2]
[330269225,1719219104954,-500.0,0.00019178,2]
[330269226,1719219104979,-500.0,0.00019178,2]
[330269227,1719219105003,-1014.35,0.00019178,2]
[330269228,1719219105027,-500.0,0.00019178,2]
[330269229,1719219105057,-500.0,0.00019178,2]
[330269230,1719219105081,-500.0,0.00019178,2]
[330269231,1719219105106,-673.57,0.00019178,2]
[330269232,1719219105131,-500.0,0.00019178,2]
[330269233,1719219105155,-500.0,0.00019178,2]
[330269234,1719219105180,-541.37,0.00019178,2]
[330269235,1719219105204,-500.0,0.00019178,2]
[330269236,1719219105228,-500.0,0.00019178,2]
[330269237,1719219105252,-500.0,0.00019178,2]
[330269238,1719219105280,-563.8,0.00019178,2]
[330269239,1719219105306,-747.4,0.00019178,2]
[330269240,1719219105330,-500.0,0.00019178,2]
[330269241,1719219105355,-621.18,0.00019178,2]
[330269242,1719219105380,-653.53,0.00019178,2]
[330269243,1719219105405,-500.0,0.00019178,2]
[330269244,1719219105431,-500.0,0.00019178,2]
[330269245,1719219105458,-500.0,0.00019178,2]
[330269246,1719219105483,-500.0,0.00019178,2]
[330269247,1719219105508,-737.88,0.00019178,2]
[330269248,1719219105534,-908.15,0.00019178,2]
[330269249,1719219105560,-500.0,0.00019178,2]
[330269250,1719219105585,-500.0,0.00019178,2]
[330269251,1719219105610,-500.0,0.00019178,2]
[330269252,1719219105635,-500.0,0.00019178,2]
[330269253,1719219105659,-500.0,0.00019178,2]
[330269254,1719219105684,-1561.59,0.00019178,2]
[330269255,1719219105709,-500.0,0.00019178,2]
[330269256,1719219105734,-500.0,0.00019178,2]
[330269257,1719219105759,-500.0,0.00019178,2]
[330269258,1719219105783,-500.0,0.00019178,2]
[330269259,1719219105809,-500.0,0.00019178,2]
[330269260,1719219105837,-500.0,0.00019178,2]
[330269261,1719219105864,-500.0,0.00019178,2]
[330269262,1719219105889,-570.65,0.00019178,2]
[330269263,1719219105914,-500.0,0.00019178,2]
[330269264,1719219105939,-500.0,0.00019178,2]
[330269265,1719219105963,-500.0,0.00019178,2]
[330269266,1719219105988,-500.0,0.00019178,2]
[330269267,1719219106012,-500.0,0.00019178,2]
[330269268,1719219106037,-788.37,0.00019178,2]
[330269269,1719219106067,-758.31,0.00019178,2]
[330269270,1719219106092,-514.24317537,0.00019178,2]
[330269271,1719219106117,-1016.82,0.00019178,2]
[330269272,1719219106142,-500.0,0.00019178,2]
[330269273,1719219106166,-471.15508796,0.00019178,2]
[330269274,1719219106190,-500.0,0.00019178,2]
[330269275,1719219106214,-500.0,0.00019178,2]
[330269276,1719219106241,-500.0,0.00019178,2]
[330269277,1719219106272,-500.0,0.00019178,2]
[330269278,1719219106298,-500.0,0.00019178,2]
[330269279,1719219106329,-741.45,0.00019178,2]
[330269280,1719219106358,-500.0,0.00019178,2]
[330269281,1719219106385,-500.0,0.00019178,2]
[330269282,1719219106412,-500.0,0.00019178,2]
[330269283,1719219106439,-634.1,0.00019178,2]
[330269284,1719219106466,-226.48056294,0.00019178,2]
[330269285,1719219106494,-500.0,0.00019178,2]
[330269286,1719219106521,-581.28,0.00019178,2]
[330269287,1719219106547,-500.0,0.00019178,2]
[330269288,1719219106576,-187.77,0.00019178,2]
[330269289,1719219106603,-500.0,0.00019178,2]
[330269290,1719219106630,-500.0,0.00019178,2]
[330269291,1719219106657,-508.63,0.00019178,2]
[330269292,1719219106683,-1350.85,0.00019178,2]
[330269293,1719219106710,-514.55,0.00019178,2]
[330269294,1719219106739,-556.03,0.00019178,2]
[330269295,1719219106765,-500.0,0.00019178,2]
[330269296,1719219106791,-500.0,0.00019178,2]
[330269297,1719219106820,-650.34,0.00019178,2]
[330269298,1719219106845,-500.0,0.00019178,2]
[330269299,1719219106872,-500.0,0.00019178,2]
[330269300,1719219106898,-776.13,0.00019178,2]
[330269301,1719219106924,-500.0,0.00019178,2]
[330269302,1719219106951,-538.15,0.00019178,2]
[330269303,1719219106979,-500.0,0.00019178,2]
[330269304,1719219107006,-500.0,0.00019178,2]
[330269305,1719219107032,-500.0,0.00019178,2]
[330269306,1719219107059,-500.0,0.00019178,2]
[330269307,1719219107087,-500.0,0.00019178,2]
[330269308,1719219107113,-500.0,0.00019178,2]
[330269309,1719219107140,-512.0,0.00019178,2]
[330269310,1719219107167,-500.0,0.00019178,2]
[330269311,1719219107192,-500.0,0.00019178,2]
[330269312,1719219107218,-514.4,0.00019178,2]
[330269313,1719219107244,-527.80373606,0.00019178,2]
[330269314,1719219107444,-500.0,0.00019178,2]
[330269315,1719219107472,-500.0,0.00019178,2]
[330269316,1719219107501,-840.12,0.00019178,2]
[330269317,1719219107528,-500.0,0.00019178,2]
[330269318,1719219107555,-500.0,0.00019178,2]
[330269319,1719219107584,-500.0,0.00019178,2]
[330269320,1719219107612,-500.0,0.00019178,2]
[330269321,1719219107639,-460.58419044,0.00019178,2]
[330269322,1719219107668,-500.0,0.00019178,2]
[330269323,1719219107695,-542.95456927,0.00019178,2]
[330269324,1719219107722,-500.0,0.00019178,2]
[330269325,1719219107748,-500.0,0.00019178,2]
[330269326,1719219107775,-1276.05,0.00019178,2]
[330269327,1719219107802,-738.89,0.00019178,2]
[330269328,1719219107830,-500.0,0.00019178,2]
[330269329,1719219107856,-502.10935505,0.00019178,2]
[330269330,1719219107882,-500.0,0.00019178,2]
[330269331,1719219107908,-500.0,0.00019178,2]
[330269332,1719219107934,-500.0,0.00019178,2]
[330269333,1719219107961,-500.0,0.00019178,2]
[330269334,1719219107987,-503.69713956,0.00019178,2]
[330269335,1719219108013,-500.0,0.00019178,2]
[330269336,1719219108047,-500.0,0.00019178,2]
[330269337,1719219108075,-945.66,0.00019178,2]
[330269338,1719219108100,-500.0,0.00019178,2]
[330269339,1719219108126,-507.77010484,0.00019178,2]
[330269340,1719219108153,-628.39620197,0.00019178,2]
[330269341,1719219108179,-500.0,0.00019178,2]
[330269342,1719219108204,-500.0,0.00019178,2]
[330269343,1719219108231,-494.12,0.00019178,2]
[330269344,1719219108256,-500.0,0.00019178,2]
[330269345,1719219108288,-500.0,0.00019178,2]
[330269346,1719219108316,-530.62723412,0.00019178,2]
[330269347,1719219108342,-774.27,0.00019178,2]
[330269348,1719219108369,-604.79,0.00019178,2]
[330269349,1719219108396,-610.6,0.00019178,2]
[330269350,1719219108423,-797.03,0.00019178,2]
[330269351,1719219108449,-509.63948291,0.00019178,2]
[330269352,1719219108476,-674.88,0.00019178,2]
[330269353,1719219108503,-586.52,0.00019178,2]
[330269354,1719219108529,-500.0,0.00019178,2]
[330269355,1719219108554,-500.0,0.00019178,2]
[330269356,1719219108580,-500.0,0.00019178,2]
[330269357,1719219108606,-500.0,0.00019178,2]
[330269358,1719219108633,-500.0,0.00019178,2]
[330269359,1719219108660,-538.78413341,0.00019178,2]
[330269360,1719219108685,-935.12,0.00019178,2]
[330269361,1719219108711,-500.0,0.00019178,2]
[330269362,1719219108737,-500.0,0.00019178,2]
[330269363,1719219108765,-500.0,0.00019178,2]
[330269364,1719219108790,-500.0,0.00019178,2]
[330269365,1719219108818,-500.0,0.00019178,2]
[330269366,1719219108843,-500.0,0.00019178,2]
[330269367,1719219108869,-500.0,0.00019178,2]
[330269368,1719219108895,-960.92,0.00019178,2]
[330269369,1719219108921,-500.0,0.00019178,2]
[330269370,1719219108946,-558.45937085,0.00019178,2]
[330269371,1719219108973,-500.0,0.00019178,2]
[330269372,1719219109001,-500.0,0.00019178,2]
[330269373,1719219109029,-500.0,0.00019178,2]
[330269374,1719219109056,-500.0,0.00019178,2]
[330269375,1719219109084,-500.0,0.00019178,2]
[330269376,1719219109112,-841.78,0.00019178,2]
[330269377,1719219109140,-500.0,0.00019178,2]
[330269378,1719219109169,-500.0,0.00019178,2]
[330269379,1719219109196,-500.0,0.00019178,2]
[330269380,1719219109223,-500.0,0.00019178,2]
[330269381,1719219109249,-500.0,0.00019178,2]
[330269382,1719219109277,-500.0,0.00019178,2]
[330269383,1719219109305,-500.0,0.00019178,2]
[330269384,1719219109338,-500.0,0.00019178,2]
[330269385,1719219109370,-500.0,0.00019178,2]
[330269386,1719219109397,-500.0,0.00019178,2]
[330269387,1719219109424,-500.0,0.00019178,2]
[330269388,1719219109452,-500.0,0.00019178,2]
[330269389,1719219109478,-500.0,0.00019178,2]
[330269390,1719219109507,-500.0,0.00019178,2]
[330269391,1719219109536,-500.0,0.00019178,2]
[330269392,1719219109567,-500.0,0.00019178,2]
[330269393,1719219109593,-500.0,0.00019178,2]
[330269394,1719219109619,-500.0,0.00019178,2]
[330269395,1719219109646,-500.0,0.00019178,2]
[330269396,1719219109673,-504.12514686,0.00019178,2]
[330269397,1719219109700,-500.0,0.00019178,2]
[330269398,1719219109727,-508.95334661,0.00019178,2]
[330269399,1719219109754,-500.0,0.00019178,2]
[330269400,1719219109780,-624.6722154,0.00019178,2]
[330269401,1719219109807,-431.58579202,0.00019178,2]
[330269402,1719219109836,-681.7,0.00019178,2]
[330269403,1719219109864,-524.55132908,0.00019178,2]
[330269404,1719219109891,-500.0,0.00019178,2]
[330269405,1719219109917,-500.0,0.00019178,2]
[330269406,1719219109944,-1492.08,0.00019178,2]
[330269407,1719219109971,-500.0,0.00019178,2]
[330269408,1719219109998,-515.97675756,0.00019178,2]
[330269409,1719219110025,-500.0,0.00019178,2]
[330269410,1719219110053,-500.0,0.00019178,2]
[330269411,1719219110082,-605.97769325,0.00019178,2]
[330269412,1719219110110,-500.0,0.00019178,2]
[330269413,1719219110138,-698.57,0.00019178,2]
[330269414,1719219110166,-573.41,0.00019178,2]
[330269415,1719219110193,-563.03,0.00019178,2]
[330269416,1719219110220,-500.0,0.00019178,2]
[330269417,1719219110247,-500.0,0.00019178,2]
[330269418,1719219110277,-500.0,0.00019178,2]
[330269419,1719219110306,-790.64,0.00019178,2]
[330269420,1719219110511,-500.0,0.00019178,2]
[330269421,1719219110542,-986.08,0.00019178,2]
[330269422,1719219110572,-626.87,0.00019178,2]
[330269423,1719219110601,-2388.91,0.00019178,2]
[330269424,1719219110629,-589.67848555,0.00019178,2]
[330269425,1719219110656,-641.19,0.00019178,2]
[330269426,1719219110683,-794.26,0.00019178,2]
[330269427,1719219110710,-500.0,0.00019178,2]
[330269428,1719219110737,-500.0,0.00019178,2]
[330269429,1719219110763,-500.0,0.00019178,2]
[330269430,1719219110790,-500.0,0.00019178,2]
[330269431,1719219110819,-500.0,0.00019178,2]
[330269432,1719219110846,-500.0,0.00019178,2]
[330269433,1719219110873,-500.0,0.00019178,2]